bitfinex/quotes_BTCUSD_20250814
["timestamp","ask_amount","ask_price","bid_price","bid_amount"]
[1755207833259,0.34992,117530.0,117520.0,0.00707]
[1755207833469,0.34992,117530.0,117520.0,0.58603186]
[1755207833669,0.34992,117530.0,117520.0,0.00707]
[1755207834263,0.34992,117530.0,117520.0,0.01007]
[1755207834478,0.37604352,117530.0,117520.0,0.01007]
[1755207834681,0.37604352,117530.0,117520.0,0.58903186]
[1755207836082,0.34992,117530.0,117520.0,0.58903186]
[1755207837981,0.20195,117530.0,117520.0,0.58600186]
[1755207838180,0.20195,117530.0,117520.0,0.01007]
[1755207838181,0.35187,117530.0,117520.0,0.01007]
[1755207838381,0.35187,117530.0,117520.0,0.58903186]
[1755207838731,0.35187,117530.0,117520.0,0.58703186]
[1755207838870,0.39586041,117530.0,117520.0,0.58803186]
[1755207839914,0.39586041,117530.0,117520.0,0.58703186]
[1755207840324,0.35187,117530.0,117520.0,0.58703186]
[1755207840522,0.35187,117530.0,117520.0,0.58403186]
[1755207840724,0.34992,117530.0,117520.0,0.58503186]
[1755207841388,0.34992,117530.0,117520.0,0.58603186]
[1755207841946,0.34992,117530.0,117520.0,0.00707]
[1755207842147,0.3937154,117530.0,117520.0,0.58603186]
[1755207842766,0.34992,117530.0,117520.0,0.58603186]
[1755207842971,0.34992,117530.0,117520.0,0.00707]
[1755207843178,0.34992,117530.0,117520.0,0.58603186]
[1755207843413,0.34992,117530.0,117520.0,0.00707]
[1755207843618,0.34992,117530.0,117520.0,0.58603186]
[1755207844494,0.2,117530.0,117520.0,1.50499372]
[1755207844741,0.14992,117540.0,117520.0,1.68997372]
[1755207844953,0.14992,117540.0,117530.0,0.57896186]
[1755207845162,0.14992,117540.0,117530.0,0.58403186]
[1755207846165,0.15192,117540.0,117530.0,0.58403186]
[1755207847483,0.16512679,117540.0,117530.0,0.58603186]
[1755207847689,0.16512679,117540.0,117530.0,0.58903186]
[1755207847864,0.15203,117540.0,117530.0,0.58600186]
[1755207848310,0.14992,117540.0,117530.0,0.01017]
[1755207848545,0.14992,117540.0,117530.0,0.59338608]
[1755207848738,0.14992,117540.0,117530.0,0.58913186]
[1755207849320,0.14988,117540.0,117530.0,0.58913186]
[1755207851202,0.36488279,117540.0,117530.0,0.01017]
[1755207851421,0.36701279,117540.0,117530.0,0.58600186]
[1755207852041,0.36488279,117540.0,117530.0,0.58913186]
[1755207853356,0.36488279,117540.0,117530.0,0.01017]
[1755207853357,0.34988,117540.0,117530.0,0.01017]
[1755207853609,0.35201,117540.0,117530.0,0.58913186]
[1755207854280,0.35501,117540.0,117530.0,0.58396186]
[1755207854487,0.34988,117540.0,117530.0,0.58918186]
[1755207855365,0.34988,117540.0,117530.0,0.01022]
[1755207855588,0.34988,117540.0,117530.0,0.58918186]
[1755207857303,0.34988,117540.0,117530.0,0.92918186]
[1755207858603,0.34988,117540.0,117530.0,0.95474186]
[1755207858907,0.34984,117540.0,117530.0,1.10458186]
[1755207859583,0.34984,117540.0,117530.0,0.52562]
[1755207859798,0.34984,117540.0,117530.0,1.10458186]
[1755207860688,0.2,117540.0,117530.0,1.10458186]
[1755207861828,0.2,117540.0,117530.0,0.37578]
[1755207862042,0.2,117540.0,117530.0,0.95474186]
[1755207863913,0.2,117540.0,117530.0,0.37578]
[1755207864129,0.2,117540.0,117530.0,0.95474186]
[1755207869946,0.00014791,117550.0,117540.0,0.34]
[1755207870162,0.00014791,117550.0,117540.0,1.07398186]
[1755207871187,0.00014791,117550.0,117540.0,1.21387356]
[1755207871391,0.00214791,117550.0,117540.0,1.23087356]
[1755207871596,0.00014791,117550.0,117540.0,1.21487356]
[1755207871800,0.00014791,117550.0,117540.0,1.87864947]
[1755207872007,0.00214791,117550.0,117540.0,1.89664947]
[1755207872235,0.00314791,117550.0,117540.0,1.90864947]
[1755207872439,0.00314791,117550.0,117540.0,1.90748947]
[1755207873464,0.00314791,117550.0,117540.0,1.93248947]
[1755207873653,0.00314791,117550.0,117540.0,1.94993849]
[1755207873865,0.00314791,117550.0,117540.0,1.97493849]
[1755207874095,0.00314791,117550.0,117540.0,2.01330155]
[1755207874727,0.00314791,117550.0,117540.0,1.90656985]
[1755207875348,0.00314791,117550.0,117540.0,2.01334387]
[1755207875555,0.00014791,117550.0,117540.0,1.98234387]
[1755207875786,0.00014791,117550.0,117540.0,2.24654387]
[1755207875997,0.00314791,117550.0,117540.0,2.30309287]
[1755207876162,0.00314791,117550.0,117540.0,2.19631885]
[1755207876375,0.00314791,117550.0,117540.0,2.30305516]
[1755207876986,1e-08,117550.0,117540.0,2.36647369]
[1755207877210,0.10478455,117590.0,117580.0,0.51009695]
[1755207877410,0.10478455,117590.0,117580.0,1.23877881]
[1755207877411,0.10696385,117590.0,117580.0,1.23877881]
[1755207877791,0.10696385,117590.0,117580.0,1.26432681]
[1755207878154,0.0225,117600.0,117590.0,0.17008249]
[1755207878355,0.02463,117600.0,117590.0,0.74904435]
[1755207879130,0.02163,117600.0,117590.0,0.74904435]
[1755207880285,0.02963,117600.0,117590.0,0.74904435]
[1755207880532,0.35268,117610.0,117600.0,0.17006802]
[1755207880689,0.20166,117610.0,117600.0,0.74902988]
[1755207881986,0.20866,117610.0,117600.0,0.74902988]
[1755207882408,0.207,117610.0,117600.0,0.75424988]
[1755207882832,0.20866,117610.0,117600.0,0.75424988]
[1755207883554,0.20866,117610.0,117600.0,1.09221988]
[1755207883945,0.008,117610.0,117600.0,1.26943488]
[1755207884346,1e-08,117610.0,117600.0,1.26943488]
[1755207884794,0.14968,117620.0,117610.0,0.51005356]
[1755207884952,0.23615405,117620.0,117610.0,1.08901542]
[1755207885382,0.15134,117620.0,117610.0,1.09423542]
[1755207885588,0.14968,117620.0,117610.0,1.09423542]
[1755207885791,0.20528,117640.0,117630.0,0.17002465]
[1755207885991,0.54184727,117640.0,117630.0,0.17002465]
[1755207886275,0.44184727,117640.0,117630.0,0.17002465]
[1755207886450,0.15175322,117640.0,117630.0,0.17002465]
[1755207886791,0.15009322,117640.0,117630.0,0.75420651]
[1755207887015,0.00215322,117640.0,117630.0,0.74898651]
[1755207888079,0.00215322,117640.0,117630.0,0.74998651]
[1755207889056,0.00215322,117640.0,117630.0,0.17102465]
[1755207889654,0.00215322,117640.0,117630.0,0.75201651]
[1755207889655,0.00049322,117640.0,117630.0,0.75201651]
[1755207889916,0.00049322,117640.0,117630.0,1.09520651]
[1755207890195,0.00215322,117640.0,117630.0,1.09520651]
[1755207890399,0.20215322,117640.0,117630.0,1.09520651]
[1755207890747,0.00215322,117640.0,117630.0,1.09420651]
[1755207891205,1e-08,117670.0,117650.0,0.16999575]
[1755207891401,0.20014784,117670.0,117660.0,1.24478268]
[1755207891625,0.20014784,117670.0,117660.0,1.24372316]
[1755207891820,0.20014784,117670.0,117660.0,1.26925416]
[1755207892177,0.0202,117680.0,117670.0,0.50996685]
[1755207892380,0.0202,117680.0,117670.0,1.09414871]
[1755207894280,0.0202,117680.0,117670.0,1.24362871]
[1755207896104,0.0202,117680.0,117670.0,1.26915671]
[1755207897123,0.02186,117680.0,117670.0,1.26911671]
[1755207898239,0.02186,117680.0,117670.0,1.26389671]
[1755207898437,0.02186,117680.0,117670.0,1.26708671]
[1755207899318,0.02186,117680.0,117670.0,1.11967671]
[1755207899664,0.02186,117680.0,117670.0,1.26907671]
[1755207901690,0.0202,117680.0,117670.0,1.26907671]
[1755207902170,0.0202,117680.0,117670.0,0.69011485]
[1755207902394,0.0002,117690.0,117680.0,0.50995241]
[1755207902395,0.2002,117690.0,117680.0,0.50995241]
[1755207902613,0.2002,117690.0,117680.0,0.51517241]
[1755207902827,0.20186,117690.0,117680.0,0.65931241]
[1755207903282,0.20971649,117690.0,117680.0,0.65931241]
[1755207904121,0.20971649,117690.0,117680.0,1.23827427]
[1755207904330,0.20971649,117690.0,117680.0,1.81723613]
[1755207906945,0.20186,117690.0,117680.0,0.65931241]
[1755207907153,0.20186,117690.0,117680.0,1.81723613]
[1755207909103,0.20186,117690.0,117680.0,0.65931241]
[1755207909312,0.20186,117690.0,117680.0,1.81723613]
[1755207910080,0.20186,117690.0,117680.0,1.84276413]
[1755207910250,0.20186,117690.0,117680.0,1.84596413]
[1755207911052,0.2002,117690.0,117680.0,1.84805413]
[1755207911246,0.2002,117690.0,117680.0,1.86233799]
[1755207911559,0.2002,117690.0,117680.0,0.69013041]
[1755207911755,0.2002,117690.0,117680.0,1.84805413]
[1755207912211,0.20973601,117690.0,117680.0,1.84805413]
[1755207912729,0.20807601,117690.0,117680.0,1.84805413]
[1755207912938,0.20807601,117690.0,117680.0,0.69013041]
[1755207913164,0.20807601,117690.0,117680.0,1.26909227]
[1755207913364,0.20807601,117690.0,117680.0,1.11973227]
[1755207913594,0.20807601,117690.0,117680.0,1.26889227]
[1755207913739,0.20807601,117690.0,117680.0,0.68993041]
[1755207913947,0.20807601,117690.0,117680.0,1.84785413]
[1755207914181,0.20808448,117690.0,117680.0,1.84785413]
[1755207917046,0.20808448,117690.0,117680.0,0.68993041]
[1755207917263,0.20808448,117690.0,117680.0,1.84785413]
[1755207918583,0.20808448,117690.0,117680.0,0.54077041]
[1755207918796,0.31406698,117690.0,117680.0,1.26352227]
[1755207919023,0.51509698,117690.0,117680.0,0.16995241]
[1755207919265,0.53090274,117690.0,117680.0,0.16995241]
[1755207920558,0.53190274,117690.0,117680.0,0.16995241]
[1755207920772,0.53190274,117690.0,117680.0,0.74891427]
[1755207920980,0.53090274,117690.0,117680.0,0.74891427]
[1755207921182,0.53090274,117690.0,117680.0,0.16995241]
[1755207921336,0.53684628,117690.0,117680.0,0.16995241]
[1755207921554,0.51601783,117690.0,117680.0,0.16995241]
[1755207921744,0.51801783,117690.0,117680.0,0.16995241]
[1755207921944,0.51801783,117690.0,117680.0,0.74891427]
[1755207922553,0.51801783,117690.0,117680.0,0.16995241]
[1755207926149,0.51801783,117690.0,117680.0,0.74891427]
[1755207926528,0.51698783,117690.0,117680.0,0.74891427]
[1755207927010,0.51802783,117690.0,117680.0,0.16995241]
[1755207927232,0.59976261,117690.0,117680.0,0.74891427]
[1755207927530,0.59872261,117690.0,117680.0,0.74891427]
[1755207927739,0.51698783,117690.0,117680.0,0.74891427]
[1755207928567,0.51802783,117690.0,117680.0,0.16995241]
[1755207928767,0.51808652,117690.0,117680.0,0.16995241]
[1755207932692,0.51808652,117690.0,117680.0,0.23761427]
[1755207933320,0.51704652,117690.0,117680.0,0.23761427]
[1755207933534,0.59878717,117690.0,117680.0,0.23761427]
[1755207934169,0.59284868,117690.0,117680.0,0.23761427]
[1755207934548,0.59283936,117690.0,117680.0,0.23761427]
[1755207936918,0.59283936,117690.0,117680.0,0.16995241]
[1755207937389,0.58493069,117690.0,117680.0,0.16995241]
[1755207938213,0.5690947,117690.0,117680.0,0.16995241]
[1755207939442,0.5690947,117690.0,117680.0,0.16899241]
[1755207939443,0.48735405,117690.0,117680.0,0.16899241]
[1755207941558,0.48735405,117690.0,117680.0,0.23665427]
[1755207941767,0.48735405,117690.0,117680.0,0.81862613]
[1755207941989,0.48735405,117690.0,117680.0,0.23966427]
[1755207942450,0.48735405,117690.0,117680.0,0.23665427]
[1755207942677,0.56602145,117690.0,117680.0,0.23665427]
[1755207947913,0.56602145,117690.0,117680.0,0.23966427]
[1755207948861,0.56602145,117690.0,117680.0,0.17200241]
[1755207951616,0.56602145,117690.0,117680.0,0.16899241]
[1755207952051,0.56602145,117690.0,117680.0,0.17200241]
[1755207954990,0.56602145,117690.0,117680.0,0.16899241]
[1755207956074,0.56706145,117690.0,117680.0,0.16899241]
[1755207956501,0.56602145,117690.0,117680.0,0.16899241]
[1755207957599,0.56602145,117690.0,117680.0,0.17396241]
[1755207958028,0.56602145,117690.0,117680.0,0.16899241]
[1755207960031,0.56602145,117690.0,117680.0,0.17200241]
[1755207960577,0.56602145,117690.0,117680.0,0.16899241]
[1755207961269,0.58187316,117690.0,117680.0,0.16899241]
[1755207961505,0.58187316,117690.0,117680.0,0.17396241]
[1755207962802,0.58187316,117690.0,117680.0,0.82190125]
[1755207963460,0.58187316,117690.0,117680.0,0.16899241]
[1755207963920,0.58187316,117690.0,117680.0,0.17200241]
[1755207964970,0.58187316,117690.0,117680.0,0.16899241]
[1755207965536,0.58187316,117690.0,117680.0,0.17200241]
[1755207967296,0.58186606,117690.0,117680.0,0.17200241]
[1755207967758,0.58186606,117690.0,117680.0,0.16899241]
[1755207968603,0.58186606,117690.0,117680.0,0.17210241]
[1755207970395,0.58186606,117690.0,117680.0,0.17408241]
[1755207971778,0.73030606,117690.0,117680.0,0.17408241]
[1755207974000,0.73030606,117690.0,117680.0,0.17210241]
[1755207975527,0.73030606,117690.0,117680.0,0.17408241]
[1755207979771,0.73030606,117690.0,117680.0,0.17408241]
[1755207979982,0.7303084,117690.0,117680.0,0.17408241]
[1755207987134,0.7303084,117690.0,117680.0,0.82398125]
[1755207987548,0.7303084,117690.0,117680.0,0.17408241]
[1755207987751,0.7303084,117690.0,117680.0,0.82398125]
[1755207987917,0.7303084,117690.0,117680.0,0.17408241]
[1755207988538,0.7283084,117690.0,117680.0,0.17408241]
[1755207988785,0.7303084,117690.0,117680.0,0.17408241]
[1755207990215,0.7503084,117690.0,117680.0,0.17408241]
[1755207994539,0.75031147,117690.0,117680.0,0.17408241]
[1755207996477,0.74997147,117690.0,117680.0,0.82398125]
[1755207996731,0.73412145,117690.0,117680.0,0.82398125]
[1755208002667,0.73412145,117690.0,117680.0,0.17408241]
[1755208002873,0.73412145,117690.0,117680.0,0.82398125]
[1755208003494,0.75161192,117690.0,117680.0,0.82398125]
[1755208003926,0.74997192,117690.0,117680.0,0.82398125]
[1755208004575,0.67130452,117690.0,117680.0,0.82398125]
[1755208005391,0.67130452,117690.0,117680.0,0.82322125]
[1755208006413,0.65545405,117690.0,117680.0,0.82322125]
[1755208008265,0.65545405,117690.0,117680.0,0.17332241]
[1755208008479,0.65545405,117690.0,117680.0,0.82322125]
[1755208009110,0.74027529,117690.0,117680.0,0.82322125]
[1755208009966,0.75938431,117690.0,117680.0,0.16823241]
[1755208012959,0.75938431,117690.0,117680.0,0.17143241]
[1755208014033,0.16996685,117670.0,117660.0,0.16998062]
[1755208014249,0.4,117630.0,117620.0,0.93833456]
[1755208014522,0.78221405,117630.0,117620.0,0.94079778]
[1755208014727,0.78387405,117630.0,117620.0,0.18419144]
[1755208015147,1.73810606,117630.0,117620.0,0.00049322]
[1755208015357,1.82289688,117630.0,117620.0,0.00049322]
[1755208016022,1.82389688,117630.0,117620.0,0.00049322]
[1755208016234,1.03192656,117630.0,117620.0,0.17053232]
[1755208016442,0.74710532,117630.0,117620.0,0.82560116]
[1755208016653,0.68317405,117630.0,117620.0,0.82560116]
[1755208016865,0.53317405,117630.0,117620.0,0.75384455]
[1755208017336,0.38481405,117630.0,117620.0,0.93364455]
[1755208017555,0.08681405,117630.0,117620.0,0.93364455]
[1755208017911,0.34736,117640.0,117630.0,0.17002465]
[1755208018126,0.43217405,117640.0,117630.0,0.82099874]
[1755208018332,0.28481405,117640.0,117630.0,0.82099874]
[1755208018553,0.28481405,117640.0,117630.0,0.8296926]
[1755208019133,0.50556833,117650.0,117640.0,0.1700102]
[1755208019330,0.18999164,117670.0,117660.0,0.1699813]
[1755208019600,0.62633825,117670.0,117660.0,0.1751513]
[1755208019824,0.42633825,117670.0,117660.0,0.1751513]
[1755208020036,0.62633825,117670.0,117660.0,0.1751513]
[1755208020251,0.42633825,117670.0,117660.0,0.1751513]
[1755208020467,0.62633825,117670.0,117660.0,0.1751513]
[1755208021336,0.62733825,117670.0,117660.0,0.1751513]
[1755208021522,0.66925949,117670.0,117660.0,0.1751513]
[1755208022043,0.62733825,117670.0,117660.0,0.1751513]
[1755208023178,0.47733825,117670.0,117660.0,0.75329353]
[1755208025553,0.47733825,117670.0,117660.0,0.90041353]
[1755208025764,0.37733825,117670.0,117660.0,0.90041353]
[1755208026425,0.37633825,117670.0,117660.0,0.90041353]
[1755208026667,0.37733825,117670.0,117660.0,0.90041353]
[1755208027551,0.37733825,117670.0,117660.0,0.75329353]
[1755208031834,0.36953005,117670.0,117660.0,0.75329353]
[1755208032411,0.36953005,117670.0,117660.0,0.1751513]
[1755208032616,0.36953005,117670.0,117660.0,0.75329353]
[1755208033024,0.36853005,117670.0,117660.0,0.75329353]
[1755208033244,0.36953005,117670.0,117660.0,0.75329353]
[1755208033445,0.34828,117670.0,117660.0,0.75329353]
[1755208033794,0.34728,117670.0,117660.0,0.75329353]
[1755208036262,0.34828,117670.0,117660.0,0.75329353]
[1755208036472,0.34828,117670.0,117660.0,0.1751513]
[1755208036674,0.34828,117670.0,117660.0,0.75329353]
[1755208040857,0.34828,117670.0,117660.0,0.1751513]
[1755208041056,0.34828,117670.0,117660.0,0.75329353]
[1755208042187,0.34728,117670.0,117660.0,0.75329353]
[1755208043058,0.34728,117670.0,117660.0,1.09329353]
[1755208044593,0.2,117670.0,117660.0,1.09329353]
[1755208045367,0.1466,117680.0,117670.0,0.16996685]
[1755208045575,0.15467042,117680.0,117670.0,0.75320908]
[1755208046001,0.1466,117680.0,117670.0,0.75320908]
[1755208046267,0.1466,117680.0,117670.0,0.17506685]
[1755208046472,0.1476,117680.0,117670.0,0.17506685]
[1755208046693,0.1476,117680.0,117670.0,1.09320908]
[1755208047156,0.1466,117680.0,117670.0,1.09320908]
[1755208047605,0.1466,117680.0,117670.0,1.23972908]
[1755208048911,0.001,117680.0,117670.0,1.23972908]
[1755208049262,0.16672,117690.0,117680.0,0.16995241]
[1755208049461,0.17481653,117690.0,117680.0,0.75015464]
[1755208049668,0.17481653,117690.0,117680.0,0.75319464]
[1755208050084,0.17481653,117690.0,117680.0,0.76174309]
[1755208050516,0.17581653,117690.0,117680.0,0.76174309]
[1755208051605,0.17581653,117690.0,117680.0,0.75319464]
[1755208051890,0.36772,117690.0,117680.0,0.89963464]
[1755208052415,0.0212,117690.0,117680.0,0.89963464]
[1755208053036,0.0212,117690.0,117680.0,1.23963464]
[1755208055930,0.0212,117690.0,117680.0,1.81777687]
[1755208057084,0.1466,117700.0,117680.0,1.81777687]
[1755208057283,0.1466,117700.0,117690.0,0.75323442]
[1755208057515,0.1466,117700.0,117690.0,0.7532002]
[1755208059217,0.1476,117700.0,117690.0,0.7532002]
[1755208059423,0.0012,117700.0,117690.0,0.7532002]
[1755208059809,0.00124925,117700.0,117690.0,0.7532002]
[1755208061456,1e-08,117700.0,117690.0,1.2393202]
[1755208064324,1e-08,117700.0,117690.0,1.32513425]
[1755208064865,1e-08,117700.0,117690.0,1.32413425]
[1755208065306,1e-08,117700.0,117690.0,1.32813425]
[1755208065724,0.16193609,117720.0,117710.0,0.16990909]
[1755208066027,0.14612,117720.0,117710.0,0.89921132]
[1755208066430,0.16193609,117720.0,117710.0,0.89921132]
[1755208066583,0.14612,117720.0,117710.0,1.23921132]
[1755208067012,0.0175,117740.0,117730.0,0.16988023]
[1755208067271,0.03338533,117740.0,117730.0,0.75314246]
[1755208068463,0.03338533,117740.0,117730.0,1.23906246]
[1755208068994,0.0175837,117740.0,117730.0,1.23906246]
[1755208069346,0.0175837,117740.0,117730.0,1.23846246]
[1755208071581,1e-08,117740.0,117730.0,1.23846246]
[1755208072017,1e-08,117740.0,117730.0,1.33175466]
[1755208072379,1e-08,117740.0,117730.0,1.35497705]
[1755208072827,1e-08,117750.0,117740.0,0.1698658]
[1755208073073,1e-08,117750.0,117740.0,1.23892803]
[1755208073396,1e-08,117750.0,117740.0,1.32374208]
[1755208073598,1e-08,117750.0,117740.0,1.34696447]
[1755208073816,0.11243258,117770.0,117760.0,0.16983695]
[1755208074201,0.11885075,117780.0,117770.0,0.50982253]
[1755208074411,0.0002,117800.0,117790.0,0.1697937]
[1755208074617,0.1002,117800.0,117790.0,1.09002593]
[1755208074821,0.3002,117810.0,117800.0,0.16977928]
[1755208075029,0.3002,117810.0,117800.0,0.75001151]
[1755208075215,0.30069274,117810.0,117800.0,0.75304151]
[1755208075464,0.30069274,117810.0,117800.0,1.67118374]
[1755208075674,0.00069274,117810.0,117800.0,1.67118374]
[1755208075879,0.00069274,117810.0,117800.0,1.09304151]
[1755208076086,0.00069274,117810.0,117800.0,1.23872151]
[1755208076396,0.00069274,117810.0,117800.0,1.81686374]
[1755208079170,0.01639593,117810.0,117800.0,1.81686374]
[1755208079587,0.00069274,117810.0,117800.0,1.81686374]
[1755208079783,0.00069274,117810.0,117800.0,1.90167779]
[1755208080490,0.0163881,117810.0,117800.0,1.90167779]
[1755208080702,0.00069274,117810.0,117800.0,1.90167779]
[1755208081573,1e-08,117810.0,117800.0,1.90167779]
[1755208083522,1e-08,117810.0,117800.0,1.90367779]
[1755208084388,1e-08,117810.0,117800.0,1.90667779]
[1755208085458,0.14648,117850.0,117840.0,0.16972165]
[1755208085656,0.24724778,117850.0,117840.0,0.74786388]
[1755208085865,0.25508484,117850.0,117840.0,0.16972165]
[1755208086284,0.25508484,117850.0,117840.0,0.74786388]
[1755208086734,0.15608484,117850.0,117840.0,0.74786388]
[1755208086940,0.00898484,117850.0,117840.0,1.67123611]
[1755208087852,0.00114778,117850.0,117840.0,1.67123611]
[1755208088054,0.00014778,117850.0,117840.0,1.67123611]
[1755208088487,0.00014778,117850.0,117840.0,1.75605016]
[1755208088697,0.00180778,117850.0,117840.0,1.09509388]
[1755208088901,0.01063801,117850.0,117840.0,0.51172165]
[1755208089111,0.01167801,117850.0,117840.0,0.17172165]
[1755208089321,0.01067801,117850.0,117840.0,0.17172165]
[1755208089768,0.04629381,117850.0,117840.0,0.17272165]
[1755208089976,0.04629381,117850.0,117840.0,0.17072165]
[1755208090196,0.04629381,117850.0,117840.0,0.16972165]
[1755208091539,0.04629381,117850.0,117840.0,0.74786388]
[1755208091792,0.04629381,117850.0,117840.0,0.16972165]
[1755208091793,0.01067801,117850.0,117840.0,0.16972165]
[1755208091990,0.01067801,117850.0,117840.0,0.74786388]
[1755208092218,0.00963801,117850.0,117840.0,0.74786388]
[1755208094369,0.00965068,117850.0,117840.0,0.74786388]
[1755208095349,0.00965068,117850.0,117840.0,0.16972165]
[1755208095553,0.00965068,117850.0,117840.0,0.74786388]
[1755208095984,0.00965068,117850.0,117840.0,0.75309388]
[1755208096360,0.00799068,117850.0,117840.0,0.75309388]
[1755208096570,1e-08,117850.0,117840.0,0.32011165]
[1755208096800,1e-08,117850.0,117840.0,1.90121016]
[1755208097241,0.0002,117860.0,117850.0,0.50970725]
[1755208097397,0.0002,117860.0,117850.0,1.09000948]
[1755208097615,0.0002,117860.0,117850.0,1.09307948]
[1755208098704,0.0002,117860.0,117850.0,1.09507948]
[1755208099583,0.01593118,117860.0,117850.0,1.09607948]
[1755208100523,0.04119791,117880.0,117870.0,0.16967845]
[1755208100524,0.24119791,117880.0,117870.0,0.16967845]
[1755208100725,0.24119791,117880.0,117870.0,0.75305068]
[1755208100986,0.38631791,117880.0,117870.0,0.75305068]
[1755208101192,0.38665791,117880.0,117870.0,0.17274845]
[1755208101354,0.38665791,117880.0,117870.0,0.75089068]
[1755208101972,0.38765791,117880.0,117870.0,0.75089068]
[1755208102174,0.38765791,117880.0,117870.0,0.76733454]
[1755208102501,0.38765791,117880.0,117870.0,0.75305068]
[1755208102912,0.38665791,117880.0,117870.0,0.17490845]
[1755208103075,0.38665791,117880.0,117870.0,0.75305068]
[1755208103539,0.04119791,117880.0,117870.0,0.75305068]
[1755208103840,0.18627791,117880.0,117870.0,0.75305068]
[1755208104189,0.04119791,117880.0,117870.0,0.75305068]
[1755208104420,0.18627791,117880.0,117870.0,0.75305068]
[1755208105260,0.02,117880.0,117870.0,0.75305068]
[1755208105464,0.16508,117880.0,117870.0,0.75305068]
[1755208106865,0.02,117880.0,117870.0,0.75305068]
[1755208107087,0.02,117880.0,117870.0,1.09305068]
[1755208107316,0.02,117880.0,117870.0,1.10168848]
[1755208107497,0.02,117880.0,117870.0,1.24672848]
[1755208107714,0.02,117880.0,117870.0,1.33154253]
[1755208108809,0.02789648,117880.0,117870.0,1.33154253]
[1755208109059,0.0177495,117890.0,117880.0,0.16966406]
[1755208109275,1e-08,117890.0,117880.0,1.55796257]
[1755208109529,1e-08,117890.0,117880.0,1.56103257]
[1755208109950,1e-08,117890.0,117880.0,1.58425496]
[1755208110599,1e-08,117890.0,117880.0,1.58625496]
[1755208111298,1e-08,117890.0,117880.0,1.58725496]
[1755208112244,1e-08,117890.0,117880.0,1.62328496]
[1755208113233,1e-08,117890.0,117880.0,1.98828496]
[1755208113470,1e-08,117890.0,117880.0,1.98628496]
[1755208113672,1e-08,117890.0,117880.0,1.98928496]
[1755208113870,1e-08,117890.0,117880.0,1.98828496]
[1755208114281,1e-08,117890.0,117880.0,1.75999257]
[1755208114488,1e-08,117890.0,117880.0,1.32381034]
[1755208114696,1e-08,117890.0,117880.0,1.17785034]
[1755208114913,0.00166001,117890.0,117880.0,1.33981034]
[1755208115110,1e-08,117890.0,117880.0,1.20585034]
[1755208115350,1e-08,117890.0,117880.0,0.77266811]
[1755208115545,1e-08,117890.0,117880.0,1.91795257]
[1755208115982,1e-08,117890.0,117880.0,1.91895257]
[1755208116739,1e-08,117890.0,117880.0,1.43688426]
[1755208117431,1e-08,117890.0,117880.0,1.41988426]
[1755208117638,1e-08,117890.0,117880.0,1.42288426]
[1755208119811,1e-08,117890.0,117880.0,0.74866811]
[1755208120031,1e-08,117890.0,117880.0,1.41988426]
[1755208120249,1e-08,117890.0,117880.0,1.43588426]
[1755208120913,1e-08,117890.0,117880.0,1.45188426]
[1755208121097,1e-08,117890.0,117880.0,1.46288426]
[1755208121336,1e-08,117890.0,117880.0,0.78866811]
[1755208121548,1e-08,117890.0,117880.0,1.45188426]
[1755208121972,1e-08,117890.0,117880.0,0.78866811]
[1755208122213,1e-08,117890.0,117880.0,1.46288426]
[1755208123078,1e-08,117890.0,117880.0,1.48777426]
[1755208123975,1e-08,117890.0,117880.0,0.81355811]
[1755208124181,1e-08,117890.0,117880.0,1.48777426]
[1755208126967,1e-08,117890.0,117880.0,1.51277426]
[1755208128068,1e-08,117890.0,117880.0,1.34281426]
[1755208128236,0.00166001,117890.0,117880.0,0.78539811]
[1755208128430,0.00166001,117890.0,117880.0,0.78323811]
[1755208129133,0.00166001,117890.0,117880.0,1.42445426]
[1755208129345,0.00166001,117890.0,117880.0,1.41940426]
[1755208129832,0.00166001,117890.0,117880.0,1.42250426]
[1755208130048,1e-08,117890.0,117880.0,1.42250426]
[1755208130262,1e-08,117890.0,117880.0,1.27774426]
[1755208130466,1e-08,117890.0,117880.0,1.42246426]
[1755208131284,1e-08,117890.0,117880.0,1.48146426]
[1755208132540,1e-08,117890.0,117880.0,1.47746426]
[1755208132712,1e-08,117890.0,117880.0,1.50246426]
[1755208132872,1e-08,117890.0,117880.0,1.53046426]
[1755208133079,1e-08,117890.0,117880.0,1.51346426]
[1755208133281,1e-08,117890.0,117880.0,1.50198426]
[1755208133478,1e-08,117890.0,117880.0,1.53498426]
[1755208133725,1e-08,117890.0,117880.0,1.55698426]
[1755208134736,1e-08,117920.0,117910.0,0.16962089]
[1755208134946,1e-08,117920.0,117910.0,1.07543109]
[1755208135161,1e-08,117920.0,117910.0,0.40416494]
[1755208135520,1e-08,117920.0,117910.0,1.07838109]
[1755208135729,0.02,117930.0,117920.0,0.50960651]
[1755208135940,0.02840267,117930.0,117920.0,1.32850266]
[1755208136351,0.02840267,117930.0,117920.0,1.33355266]
[1755208136802,0.02840267,117930.0,117920.0,0.65723651]
[1755208137015,0.02840267,117930.0,117920.0,1.33145266]
[1755208137225,1e-08,117930.0,117920.0,1.42036671]
[1755208137451,1e-08,117930.0,117920.0,1.42136671]
[1755208138712,1e-08,117930.0,117920.0,0.74615056]
[1755208138917,1e-08,117930.0,117920.0,1.42136671]
[1755208139370,1e-08,117930.0,117920.0,1.41836671]
[1755208139800,1e-08,117930.0,117920.0,1.28668671]
[1755208140006,1e-08,117930.0,117920.0,1.42932671]
[1755208140212,1e-08,117930.0,117920.0,1.44632671]
[1755208141051,0.01602534,117970.0,117960.0,0.16954899]
[1755208141276,0.01617292,117970.0,117960.0,0.16954899]
[1755208142819,0.01616187,117970.0,117960.0,0.16954899]
[1755208145590,0.01614996,117970.0,117960.0,0.16954899]
[1755208146866,0.01614996,117970.0,117960.0,0.74440791]
[1755208147249,0.01614996,117970.0,117960.0,0.16954899]
[1755208147679,0.01614996,117970.0,117960.0,0.74440791]
[1755208147894,0.00034758,117970.0,117960.0,0.74440791]
[1755208148091,0.01614763,117970.0,117960.0,0.74440791]
[1755208148765,0.01614613,117970.0,117960.0,0.74440791]
[1755208149354,0.02404537,117970.0,117960.0,0.74440791]
[1755208151138,0.02404537,117970.0,117960.0,0.16954899]
[1755208151576,0.02404537,117970.0,117960.0,0.74440791]
[1755208152189,0.02404537,117970.0,117960.0,0.74748791]
[1755208152613,0.02404537,117970.0,117960.0,0.17262899]
[1755208152827,0.02404537,117970.0,117960.0,0.74748791]
[1755208153929,0.02404537,117970.0,117960.0,0.57793892]
[1755208154139,0.02404537,117970.0,117960.0,0.00308]
[1755208154339,0.02403766,117970.0,117960.0,0.58005828]
[1755208154538,0.02403766,117970.0,117960.0,0.57793892]
[1755208155475,0.01614097,117970.0,117960.0,0.57793892]
[1755208156069,0.01614097,117970.0,117960.0,0.58008892]